[Event "*** Titled Tuesday Blitz"]
[Site "Chess.com"]
[Date "2020.10.20"]
[Round "8"]
[White "VMikhalevski"]
[Black "rasmussvane"]
[Result "1-0"]
[WhiteElo "2723"]
[BlackElo "2880"]
[TimeControl "180+1"]
[EndTime "11:38:33 PDT"]
[Termination "VMikhalevski won on time"]

1. Nf3 {[%clk 0:03:00.9]} 1... d5 {[%clk 0:02:59.9]} 2. g3 {[%clk 0:03:00.2]}
2... e6 {[%clk 0:03:00.2]} 3. Bg2 {[%clk 0:03:00]} 3... Nf6 {[%clk 0:03:00.7]}
4. O-O {[%clk 0:02:59.9]} 4... Be7 {[%clk 0:03:01]} 5. c4 {[%clk 0:03:00]} 5...
O-O {[%clk 0:03:01.3]} 6. b3 {[%clk 0:02:59.6]} 6... d4 {[%clk 0:03:01.2]} 7. e3
{[%clk 0:02:59]} 7... c5 {[%clk 0:03:01.6]} 8. Ne5 {[%clk 0:02:58.6]} 8... Qc7
{[%clk 0:03:00.5]} 9. exd4 {[%clk 0:02:57.7]} 9... cxd4 {[%clk 0:03:00.5]} 10.
Re1 {[%clk 0:02:57.2]} 10... Nc6 {[%clk 0:02:58.5]} 11. Nxc6 {[%clk 0:02:53.5]}
11... bxc6 {[%clk 0:02:59.4]} 12. d3 {[%clk 0:02:52.4]} 12... e5 {[%clk
0:02:57.4]} 13. f4 {[%clk 0:02:43.4]} 13... Bd6 {[%clk 0:02:48.9]} 14. fxe5
{[%clk 0:02:29.5]} 14... Bxe5 {[%clk 0:02:49.8]} 15. Nd2 {[%clk 0:02:26.3]}
15... Ng4 {[%clk 0:02:34.6]} 16. Nf3 {[%clk 0:02:22.1]} 16... Bf6 {[%clk
0:02:28.7]} 17. Bf4 {[%clk 0:02:21.1]} 17... Qa5 {[%clk 0:02:20.7]} 18. Qd2
{[%clk 0:02:16]} 18... Qb6 {[%clk 0:02:00.5]} 19. Rac1 {[%clk 0:02:08.3]} 19...
Bf5 {[%clk 0:01:55.7]} 20. h3 {[%clk 0:01:57]} 20... Ne3 {[%clk 0:01:55]} 21.
Bxe3 {[%clk 0:01:55.4]} 21... dxe3 {[%clk 0:01:55.9]} 22. Qxe3 {[%clk
0:01:54.7]} 22... Bxd3 {[%clk 0:01:54.6]} 23. c5 {[%clk 0:01:45.4]} 23... Qa6
{[%clk 0:01:52]} 24. Ne5 {[%clk 0:01:42.5]} 24... Bxe5 {[%clk 0:01:46.6]} 25.
Qxe5 {[%clk 0:01:42.3]} 25... Rad8 {[%clk 0:01:28.4]} 26. Qc3 {[%clk 0:01:17.7]}
26... Bf5 {[%clk 0:01:22.1]} 27. Rcd1 {[%clk 0:01:14.7]} 27... h6 {[%clk
0:00:53.1]} 28. a4 {[%clk 0:01:06.1]} 28... Qc8 {[%clk 0:00:49.2]} 29. g4 {[%clk
0:01:04.3]} 29... Be6 {[%clk 0:00:48.7]} 30. Rd6 {[%clk 0:01:02.7]} 30... Bd5
{[%clk 0:00:42]} 31. Bxd5 {[%clk 0:01:01]} 31... cxd5 {[%clk 0:00:42.9]} 32.
Rxd8 {[%clk 0:00:56.3]} 32... Rxd8 {[%clk 0:00:43.8]} 33. Qd4 {[%clk 0:00:56.1]}
33... a5 {[%clk 0:00:42.2]} 34. Re7 {[%clk 0:00:47.1]} 34... Qb8 {[%clk
0:00:37.6]} 35. Qd3 {[%clk 0:00:40.1]} 35... Qf4 {[%clk 0:00:25.6]} 36. Kg2
{[%clk 0:00:35.5]} 36... Qf6 {[%clk 0:00:22]} 37. Re2 {[%clk 0:00:31.2]} 37...
Qc6 {[%clk 0:00:16.7]} 38. Qd4 {[%clk 0:00:30.7]} 38... Rc8 {[%clk 0:00:17.1]}
39. Rc2 {[%clk 0:00:30.4]} 39... Re8 {[%clk 0:00:17.3]} 40. Rd2 {[%clk
0:00:29.2]} 40... Rd8 {[%clk 0:00:07.3]} 41. Rd3 {[%clk 0:00:26.6]} 41... Qb7
{[%clk 0:00:07.1]} 42. Rc3 {[%clk 0:00:25.6]} 42... Qc6 {[%clk 0:00:06.5]} 43.
Re3 {[%clk 0:00:24.3]} 43... Rb8 {[%clk 0:00:05.8]} 44. Rd3 {[%clk 0:00:22.3]}
44... Rd8 {[%clk 0:00:05.1]} 45. Rf3 {[%clk 0:00:20.5]} 45... Qe6 {[%clk
0:00:04.6]} 46. Re3 {[%clk 0:00:17]} 46... Qd7 {[%clk 0:00:04.3]} 47. Re5 {[%clk
0:00:16.1]} 47... Qc6 {[%clk 0:00:04.3]} 48. Re3 {[%clk 0:00:14.6]} 48... Rb8
{[%clk 0:00:04.1]} 49. Rd3 {[%clk 0:00:12.3]} 49... Rc8 {[%clk 0:00:03.6]} 50.
Qxd5 {[%clk 0:00:11.6]} 50... Qxc5 {[%clk 0:00:04.2]} 51. Qxc5 {[%clk
0:00:10.7]} 51... Rxc5 {[%clk 0:00:05.1]} 52. Rd8+ {[%clk 0:00:11]} 52... Kh7
{[%clk 0:00:05.2]} 53. Ra8 {[%clk 0:00:11.6]} 53... Kg6 {[%clk 0:00:03.7]} 54.
Ra7 {[%clk 0:00:10.9]} 54... f6 {[%clk 0:00:03.5]} 55. h4 {[%clk 0:00:10.6]}
55... h5 {[%clk 0:00:03.4]} 56. gxh5+ {[%clk 0:00:10.5]} 56... Rxh5 {[%clk
0:00:04.3]} 57. Kg3 {[%clk 0:00:10.2]} 57... Rd5 {[%clk 0:00:04.9]} 58. Kg4
{[%clk 0:00:10.4]} 58... Rd4+ {[%clk 0:00:05.2]} 59. Kg3 {[%clk 0:00:10.4]}
59... Rd3+ {[%clk 0:00:05.7]} 60. Kf4 {[%clk 0:00:10.1]} 60... Rxb3 {[%clk
0:00:05.1]} 61. Rxa5 {[%clk 0:00:10.3]} 61... Rb4+ {[%clk 0:00:06]} 62. Kg3
{[%clk 0:00:10.2]} 62... f5 {[%clk 0:00:06.4]} 63. Ra7 {[%clk 0:00:08.5]} 63...
Kh6 {[%clk 0:00:05.8]} 64. a5 {[%clk 0:00:09]} 64... Rg4+ {[%clk 0:00:05]} 65.
Kh3 {[%clk 0:00:07.2]} 65... Ra4 {[%clk 0:00:05.1]} 66. a6 {[%clk 0:00:06.7]}
66... g6 {[%clk 0:00:04.9]} 67. Ra8 {[%clk 0:00:07]} 67... Ra3+ {[%clk
0:00:04.7]} 68. Kg2 {[%clk 0:00:06.3]} 68... Kh5 {[%clk 0:00:05.6]} 69. a7
{[%clk 0:00:06.2]} 69... Kg4 {[%clk 0:00:04.7]} 70. h5 {[%clk 0:00:05.7]} 70...
g5 {[%clk 0:00:03.7]} 71. h6 {[%clk 0:00:04.5]} 71... Ra2+ {[%clk 0:00:03.9]}
72. Kf1 {[%clk 0:00:04.9]} 72... Kf3 {[%clk 0:00:01.9]} 73. Ke1 {[%clk
0:00:05.2]} 1-0

[Event "*** Titled Tuesday Blitz"]
[Site "Chess.com"]
[Date "2020.10.20"]
[Round "8"]
[White "Ariadna_Atreides"]
[Black "Morshynska"]
[Result "1/2-1/2"]
[WhiteElo "2064"]
[BlackElo "2223"]
[TimeControl "180+1"]
[EndTime "11:38:39 PDT"]
[Termination "Game drawn by repetition"]

1. d4 {[%clk 0:03:00.9]} 1... d5 {[%clk 0:02:59.5]} 2. Nf3 {[%clk 0:03:00.5]}
2... Nf6 {[%clk 0:02:59.1]} 3. e3 {[%clk 0:02:58]} 3... c6 {[%clk 0:02:57.8]} 4.
Bd3 {[%clk 0:02:52.5]} 4... Bg4 {[%clk 0:02:56.9]} 5. Nbd2 {[%clk 0:02:51.2]}
5... Nbd7 {[%clk 0:02:56.2]} 6. h3 {[%clk 0:02:50.7]} 6... Bh5 {[%clk
0:02:55.7]} 7. b3 {[%clk 0:02:45.3]} 7... e6 {[%clk 0:02:46.9]} 8. Bb2 {[%clk
0:02:44.2]} 8... Bd6 {[%clk 0:02:43.6]} 9. c4 {[%clk 0:02:36.9]} 9... Qe7 {[%clk
0:02:40.7]} 10. Qc2 {[%clk 0:02:13.7]} 10... Ba3 {[%clk 0:02:37.1]} 11. Bxa3
{[%clk 0:01:58.5]} 11... Qxa3 {[%clk 0:02:38]} 12. O-O {[%clk 0:01:57.4]} 12...
O-O {[%clk 0:02:30.8]} 13. cxd5 {[%clk 0:01:33.5]} 13... exd5 {[%clk 0:02:29.3]}
14. Ne5 {[%clk 0:01:29.4]} 14... Bg6 {[%clk 0:02:14.6]} 15. Nxg6 {[%clk
0:01:11]} 15... hxg6 {[%clk 0:02:15.5]} 16. Nf3 {[%clk 0:00:52.2]} 16... Rfe8
{[%clk 0:02:11]} 17. Ng5 {[%clk 0:00:49.7]} 17... Nf8 {[%clk 0:02:03.7]} 18.
Rfe1 {[%clk 0:00:43.4]} 18... Ne6 {[%clk 0:01:57.4]} 19. Nxf7 {[%clk 0:00:38.3]}
19... Kxf7 {[%clk 0:01:54.9]} 20. Bxg6+ {[%clk 0:00:38.7]} 20... Kg8 {[%clk
0:01:51.9]} 21. Bxe8 {[%clk 0:00:38.2]} 21... Rxe8 {[%clk 0:01:52.8]} 22. Qg6
{[%clk 0:00:36.1]} 22... Rf8 {[%clk 0:01:46.3]} 23. f3 {[%clk 0:00:31]} 23... a5
{[%clk 0:01:21]} 24. h4 {[%clk 0:00:29.9]} 24... Qe7 {[%clk 0:01:12.2]} 25. g3
{[%clk 0:00:23.4]} 25... Nd7 {[%clk 0:00:49.2]} 26. Kg2 {[%clk 0:00:22.5]} 26...
Rf6 {[%clk 0:00:45.6]} 27. Qd3 {[%clk 0:00:21.1]} 27... Qf7 {[%clk 0:00:40.8]}
28. f4 {[%clk 0:00:19.4]} 28... g6 {[%clk 0:00:38.3]} 29. Rf1 {[%clk 0:00:15.4]}
29... Ng7 {[%clk 0:00:38]} 30. g4 {[%clk 0:00:14.1]} 30... Nb6 {[%clk
0:00:34.1]} 31. Kg3 {[%clk 0:00:13.5]} 31... Nc8 {[%clk 0:00:34.1]} 32. e4
{[%clk 0:00:13.6]} 32... dxe4 {[%clk 0:00:32.5]} 33. Qxe4 {[%clk 0:00:13.5]}
33... Nd6 {[%clk 0:00:32.6]} 34. Qe3 {[%clk 0:00:12.5]} 34... Re6 {[%clk
0:00:31.9]} 35. Qf3 {[%clk 0:00:11.7]} 35... Ne4+ {[%clk 0:00:29.5]} 36. Kg2
{[%clk 0:00:11]} 36... Nd2 {[%clk 0:00:28.1]} 37. Qf2 {[%clk 0:00:09.7]} 37...
Nxf1 {[%clk 0:00:27.4]} 38. Rxf1 {[%clk 0:00:08.5]} 38... Qd7 {[%clk 0:00:24.4]}
39. f5 {[%clk 0:00:07.6]} 39... gxf5 {[%clk 0:00:22.5]} 40. gxf5 {[%clk
0:00:07.9]} 40... Rf6 {[%clk 0:00:22.4]} 41. Qc2 {[%clk 0:00:05.8]} 41... Rxf5
{[%clk 0:00:20.7]} 42. Qc4+ {[%clk 0:00:04.9]} 42... Qd5+ {[%clk 0:00:19.3]} 43.
Qxd5+ {[%clk 0:00:03.9]} 43... Rxd5 {[%clk 0:00:20.2]} 44. Rd1 {[%clk
0:00:02.7]} 44... Nf5 {[%clk 0:00:20]} 45. Kf3 {[%clk 0:00:01.9]} 45... Nxd4+
{[%clk 0:00:20]} 46. Ke4 {[%clk 0:00:01.9]} 46... Nc2 {[%clk 0:00:15.9]} 47.
Rxd5 {[%clk 0:00:02.4]} 47... cxd5+ {[%clk 0:00:16.3]} 48. Kxd5 {[%clk
0:00:03.3]} 48... Nb4+ {[%clk 0:00:16]} 49. Kc5 {[%clk 0:00:03.4]} 49... Nxa2
{[%clk 0:00:15.6]} 50. Kb6 {[%clk 0:00:03.6]} 50... Nc1 {[%clk 0:00:13.8]} 51.
Kxa5 {[%clk 0:00:03.6]} 51... Nxb3+ {[%clk 0:00:14.7]} 52. Kb6 {[%clk
0:00:03.7]} 52... Nd4 {[%clk 0:00:13.8]} 53. Kxb7 {[%clk 0:00:04]} 53... Nf5
{[%clk 0:00:14.7]} 54. h5 {[%clk 0:00:03.8]} 54... Ng7 {[%clk 0:00:14.6]} 55. h6
{[%clk 0:00:04.7]} 55... Nf5 {[%clk 0:00:15.1]} 56. h7+ {[%clk 0:00:04.8]} 56...
Kh8 {[%clk 0:00:16]} 57. Kc7 {[%clk 0:00:05]} 57... Ne3 {[%clk 0:00:16.5]} 58.
Kd7 {[%clk 0:00:05.4]} 58... Nd1 {[%clk 0:00:17.4]} 59. Ke6 {[%clk 0:00:05.7]}
59... Nb2 {[%clk 0:00:18.3]} 60. Kf6 {[%clk 0:00:06.2]} 60... Na4 {[%clk
0:00:18.8]} 61. Kg6 {[%clk 0:00:07.1]} 61... Nb6 {[%clk 0:00:19.7]} 62. Kh6
{[%clk 0:00:07.8]} 62... Na8 {[%clk 0:00:20.6]} 63. Kg6 {[%clk 0:00:08.3]} 63...
Nc7 {[%clk 0:00:21.5]} 64. Kh6 {[%clk 0:00:08.8]} 64... Nb5 {[%clk 0:00:22.4]}
65. Kg6 {[%clk 0:00:09]} 65... Nd4 {[%clk 0:00:23.3]} 66. Kh6 {[%clk 0:00:09.5]}
66... Nf3 {[%clk 0:00:24.2]} 67. Kg6 {[%clk 0:00:09.9]} 67... Ne5+ {[%clk
0:00:25.1]} 68. Kh6 {[%clk 0:00:10.2]} 68... Nd7 {[%clk 0:00:26]} 69. Kg6 {[%clk
0:00:10.4]} 69... Ne5+ {[%clk 0:00:26.9]} 70. Kh6 {[%clk 0:00:10.9]} 70... Nc6
{[%clk 0:00:27.6]} 71. Kg6 {[%clk 0:00:11.3]} 71... Nb4 {[%clk 0:00:28.5]} 72.
Kh6 {[%clk 0:00:11.7]} 72... Nd3 {[%clk 0:00:29.4]} 73. Kg6 {[%clk 0:00:12.1]}
73... Nc5 {[%clk 0:00:30.3]} 74. Kh6 {[%clk 0:00:12.5]} 74... Ne4 {[%clk
0:00:31.2]} 75. Kg6 {[%clk 0:00:12.9]} 75... Nf2 {[%clk 0:00:32.1]} 76. Kh6
{[%clk 0:00:13.3]} 76... Ne4 {[%clk 0:00:33]} 77. Kg6 {[%clk 0:00:13.7]} 77...
Ng3 {[%clk 0:00:33.9]} 78. Kh6 {[%clk 0:00:14]} 78... Nh1 {[%clk 0:00:34.8]} 79.
Kg6 {[%clk 0:00:14.4]} 79... Nf2 {[%clk 0:00:35.7]} 80. Kh6 {[%clk 0:00:14.9]}
80... Nd1 {[%clk 0:00:36.6]} 81. Kg6 {[%clk 0:00:15.4]} 81... Ne3 {[%clk
0:00:37.5]} 82. Kh6 {[%clk 0:00:15.8]} 82... Nd5 {[%clk 0:00:38.4]} 83. Kg6
{[%clk 0:00:16.3]} 83... Nc7 {[%clk 0:00:39.3]} 84. Kh6 {[%clk 0:00:16.6]} 84...
Ne8 {[%clk 0:00:40.2]} 85. Kg6 {[%clk 0:00:17.1]} 85... Nd6 {[%clk 0:00:41.1]}
86. Kh6 {[%clk 0:00:17.6]} 86... Nb5 {[%clk 0:00:42]} 87. Kg6 {[%clk 0:00:18.2]}
87... Nd4 {[%clk 0:00:42.9]} 88. Kh6 {[%clk 0:00:19.1]} 88... Ne6 {[%clk
0:00:43.8]} 89. Kg6 {[%clk 0:00:19.4]} 89... Nf4+ {[%clk 0:00:44.7]} 90. Kh6
{[%clk 0:00:19.7]} 90... Ne6 {[%clk 0:00:44.8]} 91. Kg6 {[%clk 0:00:19.7]} 91...
Nf8+ {[%clk 0:00:45.3]} 92. Kh6 {[%clk 0:00:19.9]} 92... Nd7 {[%clk 0:00:45]}
93. Kg6 {[%clk 0:00:19.9]} 93... Nb8 {[%clk 0:00:45.9]} 94. Kh6 {[%clk
0:00:20.1]} 94... Nc6 {[%clk 0:00:46.8]} 95. Kg6 {[%clk 0:00:20.5]} 95... Na5
{[%clk 0:00:47.7]} 96. Kh6 {[%clk 0:00:20.9]} 96... Nc4 {[%clk 0:00:48.6]} 97.
Kg6 {[%clk 0:00:21.3]} 97... Na3 {[%clk 0:00:49.5]} 98. Kh6 {[%clk 0:00:21.7]}
98... Nc2 {[%clk 0:00:50.4]} 99. Kg6 {[%clk 0:00:22.1]} 99... Ne3 {[%clk
0:00:51.3]} 100. Kh6 {[%clk 0:00:22.8]} 100... Ng2 {[%clk 0:00:52.2]} 101. Kg6
{[%clk 0:00:23.7]} 101... Nf4+ {[%clk 0:00:53.1]} 102. Kh6 {[%clk 0:00:24.6]}
102... Nd5 {[%clk 0:00:54]} 103. Kg6 {[%clk 0:00:25.5]} 103... Ne7+ {[%clk
0:00:54.9]} 104. Kh6 {[%clk 0:00:25.8]} 104... Nc6 {[%clk 0:00:54.7]} 1/2-1/2

[Event "*** Titled Tuesday Blitz"]
[Site "Chess.com"]
[Date "2020.10.20"]
[Round "8"]
[White "Shubinkirill2003"]
[Black "kuban1991"]
[Result "1-0"]
[WhiteElo "2669"]
[BlackElo "2807"]
[TimeControl "180+1"]
[EndTime "11:38:40 PDT"]
[Termination "Shubinkirill2003 won on time"]

1. e4 {[%clk 0:03:00.9]} 1... e6 {[%clk 0:02:59.7]} 2. d4 {[%clk 0:03:00.4]}
2... d5 {[%clk 0:03:00.6]} 3. Nc3 {[%clk 0:02:58.6]} 3... Bb4 {[%clk 0:02:58.8]}
4. e5 {[%clk 0:02:58.3]} 4... c5 {[%clk 0:02:59.1]} 5. a3 {[%clk 0:02:58.2]}
5... Bxc3+ {[%clk 0:02:58.5]} 6. bxc3 {[%clk 0:02:59.1]} 6... Nc6 {[%clk
0:02:58.8]} 7. Qg4 {[%clk 0:02:58.6]} 7... g6 {[%clk 0:02:58.9]} 8. Nf3 {[%clk
0:02:57.6]} 8... Bd7 {[%clk 0:02:59.1]} 9. Be2 {[%clk 0:02:54.7]} 9... Qa5
{[%clk 0:02:59]} 10. Bd2 {[%clk 0:02:54.1]} 10... c4 {[%clk 0:02:59.3]} 11. O-O
{[%clk 0:02:53.5]} 11... O-O-O {[%clk 0:02:58.9]} 12. Rfb1 {[%clk 0:02:52.4]}
12... f5 {[%clk 0:02:57.9]} 13. Qg3 {[%clk 0:02:34.4]} 13... Nge7 {[%clk
0:02:57]} 14. a4 {[%clk 0:02:28.2]} 14... h6 {[%clk 0:02:55.2]} 15. h4 {[%clk
0:02:25]} 15... Rdg8 {[%clk 0:02:54.8]} 16. Rb5 {[%clk 0:02:04]} 16... Qc7
{[%clk 0:02:52.4]} 17. a5 {[%clk 0:01:47.3]} 17... Nd8 {[%clk 0:02:49]} 18. Rbb1
{[%clk 0:01:37.1]} 18... Nf7 {[%clk 0:02:48]} 19. Bc1 {[%clk 0:01:36.1]} 19...
Nc6 {[%clk 0:02:39.2]} 20. Ba3 {[%clk 0:01:34.8]} 20... g5 {[%clk 0:02:38.5]}
21. h5 {[%clk 0:01:19.1]} 21... Qxa5 {[%clk 0:02:08.6]} 22. Bb4 {[%clk
0:01:05.4]} 22... Qc7 {[%clk 0:02:05.2]} 23. Bd6 {[%clk 0:00:57.2]} 23... Qd8
{[%clk 0:02:04.5]} 24. Nd2 {[%clk 0:00:52.5]} 24... f4 {[%clk 0:01:45.5]} 25.
Qh3 {[%clk 0:00:48.5]} 25... b6 {[%clk 0:01:36.9]} 26. Bg4 {[%clk 0:00:46.9]}
26... Re8 {[%clk 0:01:34.8]} 27. Qf3 {[%clk 0:00:40.4]} 27... Nxd6 {[%clk
0:01:20.1]} 28. exd6 {[%clk 0:00:40]} 28... Kb7 {[%clk 0:01:20.6]} 29. Ra2
{[%clk 0:00:35]} 29... Qb8 {[%clk 0:01:19.8]} 30. Rba1 {[%clk 0:00:30.7]} 30...
a5 {[%clk 0:01:18.1]} 31. Rb1 {[%clk 0:00:30.4]} 31... Qxd6 {[%clk 0:01:11.4]}
32. Rab2 {[%clk 0:00:30.5]} 32... Qc7 {[%clk 0:01:08.5]} 33. Nxc4 {[%clk
0:00:27.3]} 33... dxc4 {[%clk 0:01:06.8]} 34. d5 {[%clk 0:00:27]} 34... Ne5
{[%clk 0:00:55.4]} 35. Qe4 {[%clk 0:00:26.8]} 35... exd5 {[%clk 0:00:51.2]} 36.
Qd4 {[%clk 0:00:26.5]} 36... Bxg4 {[%clk 0:00:27.7]} 37. Rxb6+ {[%clk
0:00:25.9]} 37... Kc8 {[%clk 0:00:28.1]} 38. Qxd5 {[%clk 0:00:26.1]} 38... Rd8
{[%clk 0:00:24]} 39. Qb5 {[%clk 0:00:19.2]} 39... Rd1+ {[%clk 0:00:18.3]} 40.
Rxd1 {[%clk 0:00:18.8]} 40... Bxd1 {[%clk 0:00:19.2]} 41. Ra6 {[%clk 0:00:19.3]}
41... Nd7 {[%clk 0:00:16.2]} 42. Ra8+ {[%clk 0:00:16.5]} 42... Nb8 {[%clk
0:00:15.6]} 43. Qf5+ {[%clk 0:00:16.4]} 43... Kb7 {[%clk 0:00:12.3]} 44. Rxa5
{[%clk 0:00:16.3]} 44... Nc6 {[%clk 0:00:11.6]} 45. Rb5+ {[%clk 0:00:16.3]}
45... Ka6 {[%clk 0:00:10.6]} 46. Rb1 {[%clk 0:00:15.3]} 46... Qa5 {[%clk
0:00:06.6]} 47. Qd7 {[%clk 0:00:12.8]} 47... Rb8 {[%clk 0:00:03.6]} 48. Qxc6+
{[%clk 0:00:12.6]} 48... Ka7 {[%clk 0:00:02]} 49. Qd7+ {[%clk 0:00:12.6]} 49...
Ka6 {[%clk 0:00:02]} 50. Qd6+ {[%clk 0:00:11.6]} 50... Rb6 {[%clk 0:00:01.9]}
51. Rxb6+ {[%clk 0:00:09.5]} 51... Qxb6 {[%clk 0:00:02.3]} 52. Qxd1 {[%clk
0:00:10.1]} 52... Qf6 {[%clk 0:00:03.2]} 53. Qd4 {[%clk 0:00:09.9]} 53... Qc6
{[%clk 0:00:02.6]} 54. Kf1 {[%clk 0:00:09.7]} 54... Kb5 {[%clk 0:00:03.2]} 55.
f3 {[%clk 0:00:09.6]} 55... Ka4 {[%clk 0:00:03.4]} 56. Ke2 {[%clk 0:00:08.8]}
56... Ka3 {[%clk 0:00:04]} 57. Kd2 {[%clk 0:00:08.4]} 57... Kb2 {[%clk 0:00:04]}
58. Qd8 {[%clk 0:00:08.3]} 58... Qb5 {[%clk 0:00:04.1]} 59. Qd6 {[%clk
0:00:08.1]} 59... Qb7 {[%clk 0:00:03.5]} 60. Qb4+ {[%clk 0:00:08]} 60... Qxb4
{[%clk 0:00:04.1]} 61. cxb4 {[%clk 0:00:08.9]} 61... c3+ {[%clk 0:00:04.7]} 62.
Kd3 {[%clk 0:00:08.8]} 62... g4 {[%clk 0:00:05.6]} 63. fxg4 {[%clk 0:00:08.8]}
63... Ka3 {[%clk 0:00:03.5]} 64. b5 {[%clk 0:00:04.1]} 64... f3 {[%clk
0:00:04.2]} 65. gxf3 {[%clk 0:00:03.8]} 65... Kb4 {[%clk 0:00:04.9]} 66. b6
{[%clk 0:00:04.7]} 1-0

[Event "*** Titled Tuesday Blitz"]
[Site "Chess.com"]
[Date "2020.10.20"]
[Round "8"]
[White "witcher8"]
[Black "Leonid_Starozhilov"]
[Result "1-0"]
[WhiteElo "2439"]
[BlackElo "2606"]
[TimeControl "180+1"]
[EndTime "11:38:40 PDT"]
[Termination "witcher8 won by resignation"]

1. e4 {[%clk 0:02:26.1]} 1... c5 {[%clk 0:02:57.8]} 2. Nc3 {[%clk 0:02:25]} 2...
e6 {[%clk 0:02:57.7]} 3. f4 {[%clk 0:02:25.1]} 3... d5 {[%clk 0:02:57.8]} 4.
Bb5+ {[%clk 0:02:24.7]} 4... Bd7 {[%clk 0:02:44.9]} 5. Bxd7+ {[%clk 0:02:20.3]}
5... Qxd7 {[%clk 0:02:44.6]} 6. exd5 {[%clk 0:02:21.2]} 6... exd5 {[%clk
0:02:44.7]} 7. Nf3 {[%clk 0:02:21.4]} 7... Nc6 {[%clk 0:02:44.4]} 8. O-O {[%clk
0:02:21.4]} 8... O-O-O {[%clk 0:02:32.3]} 9. d4 {[%clk 0:02:19]} 9... cxd4
{[%clk 0:02:27.7]} 10. Nxd4 {[%clk 0:02:19.9]} 10... Nf6 {[%clk 0:02:23.4]} 11.
Kh1 {[%clk 0:02:15.5]} 11... Bc5 {[%clk 0:02:12]} 12. Be3 {[%clk 0:02:15.3]}
12... Rhe8 {[%clk 0:02:05.8]} 13. Bg1 {[%clk 0:02:15.1]} 13... Bb4 {[%clk
0:01:29]} 14. Qd3 {[%clk 0:02:08.3]} 14... Bxc3 {[%clk 0:01:12.5]} 15. bxc3
{[%clk 0:01:44.9]} 15... Ne4 {[%clk 0:01:01.7]} 16. Rab1 {[%clk 0:01:41.2]}
16... Re7 {[%clk 0:00:40.8]} 17. Rb5 {[%clk 0:01:24.5]} 17... a6 {[%clk
0:00:34]} 18. Rb6 {[%clk 0:01:24.2]} 18... Nc5 {[%clk 0:00:22]} 19. Qg3 {[%clk
0:01:24.1]} 19... Nxd4 {[%clk 0:00:16]} 20. Bxd4 {[%clk 0:01:22.3]} 20... Ne4
{[%clk 0:00:14.8]} 21. Qxg7 {[%clk 0:01:07.5]} 21... Rde8 {[%clk 0:00:15.3]} 22.
Rfb1 {[%clk 0:00:54.7]} 22... Nd2 {[%clk 0:00:12.7]} 23. Rg1 {[%clk 0:00:46.4]}
23... Nc4 {[%clk 0:00:09.9]} 24. Rbb1 {[%clk 0:00:45.1]} 24... Qf5 {[%clk
0:00:07.8]} 25. Qg5 {[%clk 0:00:36.9]} 25... Qe4 {[%clk 0:00:05.4]} 26. h4
{[%clk 0:00:31.9]} 26... Kb8 {[%clk 0:00:05]} 27. Rgd1 {[%clk 0:00:22.9]} 27...
Ka8 {[%clk 0:00:04.8]} 28. Qg4 {[%clk 0:00:19.4]} 28... f5 {[%clk 0:00:04.2]}
29. Qf3 {[%clk 0:00:19.4]} 29... Rg8 {[%clk 0:00:03.8]} 30. Qxe4 {[%clk
0:00:16.9]} 30... fxe4 {[%clk 0:00:04.5]} 31. Rg1 {[%clk 0:00:13.8]} 31... Rg4
{[%clk 0:00:04.3]} 32. g3 {[%clk 0:00:13.7]} 32... Nd2 {[%clk 0:00:04.8]} 33.
Rg2 {[%clk 0:00:12.3]} 33... Nxb1 {[%clk 0:00:05]} 34. Kh2 {[%clk 0:00:10.3]}
34... h5 {[%clk 0:00:04.4]} 35. Kh3 {[%clk 0:00:11.2]} 35... Na3 {[%clk
0:00:04.4]} 36. f5 {[%clk 0:00:09.4]} 36... Nb5 {[%clk 0:00:04.9]} 37. Be5
{[%clk 0:00:09.7]} 37... Rf7 {[%clk 0:00:05.5]} 38. f6 {[%clk 0:00:09.9]} 38...
Ka7 {[%clk 0:00:04.6]} 39. Rd2 {[%clk 0:00:09.5]} 39... b6 {[%clk 0:00:05.1]}
40. Rxd5 {[%clk 0:00:09.6]} 40... Kb7 {[%clk 0:00:05.5]} 41. a4 {[%clk
0:00:05.8]} 41... Nc7 {[%clk 0:00:05.9]} 42. Rd8 {[%clk 0:00:06.2]} 42... Rg6
{[%clk 0:00:06.1]} 43. Bd4 {[%clk 0:00:02.8]} 43... Rgxf6 {[%clk 0:00:06.1]} 44.
Bxf6 {[%clk 0:00:02.9]} 44... Rxf6 {[%clk 0:00:07]} 45. Rd7 {[%clk 0:00:02.8]}
45... Rf5 {[%clk 0:00:07.1]} 46. Re7 {[%clk 0:00:03.3]} 46... Rc5 {[%clk
0:00:06.5]} 47. Rxe4 {[%clk 0:00:03.4]} 47... Rxc3 {[%clk 0:00:07.1]} 48. Re2
{[%clk 0:00:04.3]} 48... Rc4 {[%clk 0:00:06.9]} 49. a5 {[%clk 0:00:03]} 49...
bxa5 {[%clk 0:00:07.1]} 50. Re5 {[%clk 0:00:03.9]} 50... a4 {[%clk 0:00:06.7]}
51. Rxh5 {[%clk 0:00:04.1]} 51... Nb5 {[%clk 0:00:07.1]} 52. Re5 {[%clk
0:00:03.6]} 52... a3 {[%clk 0:00:07.4]} 53. h5 {[%clk 0:00:03.3]} 53... a2
{[%clk 0:00:06.8]} 54. Re1 {[%clk 0:00:04.2]} 54... Rxc2 {[%clk 0:00:07.2]} 55.
Ra1 {[%clk 0:00:03.9]} 55... Nc3 {[%clk 0:00:07.3]} 56. h6 {[%clk 0:00:04.3]}
56... Rd2 {[%clk 0:00:07.1]} 57. g4 {[%clk 0:00:02.6]} 57... Rd6 {[%clk
0:00:07.7]} 58. g5 {[%clk 0:00:02.7]} 58... Kc7 {[%clk 0:00:06.6]} 59. Kh4
{[%clk 0:00:02.9]} 59... Kd7 {[%clk 0:00:06.8]} 60. Kh5 {[%clk 0:00:03.3]} 60...
Ke7 {[%clk 0:00:07.2]} 61. h7 {[%clk 0:00:03.9]} 61... Rd8 {[%clk 0:00:07]} 62.
Kg6 {[%clk 0:00:04.4]} 62... Nd5 {[%clk 0:00:06]} 63. Kg7 {[%clk 0:00:04.2]}
63... Nc3 {[%clk 0:00:05.2]} 64. h8=Q {[%clk 0:00:03.4]} 64... Rxh8 {[%clk
0:00:05.4]} 65. Kxh8 {[%clk 0:00:04.3]} 65... Kf7 {[%clk 0:00:05.8]} 66. Kh7
{[%clk 0:00:04.5]} 66... Ne4 {[%clk 0:00:06.2]} 67. g6+ {[%clk 0:00:04.8]} 67...
Kf6 {[%clk 0:00:06.7]} 68. g7 {[%clk 0:00:04.8]} 68... Ng5+ {[%clk 0:00:07.6]}
69. Kh8 {[%clk 0:00:05.2]} 69... Nf7+ {[%clk 0:00:07.8]} 70. Kh7 {[%clk
0:00:05.6]} 70... Ng5+ {[%clk 0:00:08.2]} 71. Kg8 {[%clk 0:00:05.9]} 71... Ne6
{[%clk 0:00:07.8]} 72. Rf1+ {[%clk 0:00:05.9]} 72... Ke7 {[%clk 0:00:08.2]} 73.
Ra1 {[%clk 0:00:05.5]} 73... Kf6 {[%clk 0:00:08.4]} 74. Rxa2 {[%clk 0:00:05.6]}
74... Nxg7 {[%clk 0:00:08.3]} 75. Rf2+ {[%clk 0:00:05.8]} 75... Ke5 {[%clk
0:00:08.5]} 76. Kxg7 {[%clk 0:00:05.6]} 76... Kd4 {[%clk 0:00:09.1]} 77. Ra2
{[%clk 0:00:05.8]} 1-0